fUST/lending_fUST_20250407
["ID","MTS","AMOUNT","RATE_DAILY","PERIOD"]
[357383424,1744029047462,-314.273874,0.00038657,14]
[357383425,1744029047471,-155.14418,0.00038657,14]
[357383426,1744029047481,-151.0,0.00038657,14]
[357383427,1744029047491,-511.471815,0.00038657,14]
[357383428,1744029047501,-728.405535,0.00038657,14]
[357383430,1744029047510,-728.405535,0.00038657,14]
[357383431,1744029047520,-228.360533,0.00038657,14]
[357383432,1744029047530,-228.360533,0.00038657,14]
[357383433,1744029047539,-164.121175,0.00038657,14]
[357383434,1744029047549,-164.121171,0.00038657,14]
[357383435,1744029047558,-151.0,0.00038657,14]
[357383436,1744029047568,-564.00270169,0.00038657,3]
[357383437,1744029047582,-2000.0,0.0003866,4]
[357383438,1744029047591,-5000.0,0.0003866,3]
[357383439,1744029047601,-398.669094,0.0003866,14]
[357383440,1744029047611,-151.0,0.0003866,14]
[357383441,1744029047620,-151.0,0.00038666,14]
[357383442,1744029047629,-175.050007,0.00038666,14]
[357383443,1744029047639,-175.050007,0.00038666,14]
[357383444,1744029047649,-314.273874,0.00038666,14]
[357383445,1744029047658,-314.273874,0.00038666,14]
[357383446,1744029047668,-154.602869,0.00038666,14]
[357383447,1744029047678,-511.471815,0.00038666,14]
[357383448,1744029047687,-728.405535,0.00038666,14]
[357383449,1744029047697,-728.405535,0.00038666,14]
[357383450,1744029047707,-228.360533,0.00038666,14]
[357383451,1744029047716,-228.360539,0.00038666,14]
[357383452,1744029047729,-151.0,0.00038666,14]
[357383453,1744029047739,-151.0,0.00038667,14]
[357383454,1744029047748,-151.0,0.00038667,14]
[357383455,1744029047758,-706.355521,0.00038667,14]
[357383456,1744029047768,-706.355521,0.00038667,14]
[357383457,1744029047778,-706.355521,0.00038667,14]
[357383458,1744029047787,-706.355521,0.00038667,14]
[357383459,1744029047796,-151.0,0.00038667,14]
[357383460,1744029047806,-398.669094,0.00038667,14]
[357383461,1744029047818,-398.669094,0.00038667,14]
[357383462,1744029047830,-398.669094,0.00038667,14]
[357383463,1744029047840,-151.0,0.00038667,14]
[357383464,1744029047849,-175.561691,0.00038667,14]
[357383465,1744029047860,-151.0,0.00038667,14]
[357383466,1744029047870,-151.0,0.00038667,14]
[357383467,1744029047880,-318.933639,0.00038667,14]
[357383468,1744029047889,-151.0,0.00038667,14]
[357383469,1744029047899,-318.933639,0.00038667,14]
[357383470,1744029047908,-318.933639,0.00038667,14]
[357383471,1744029047918,-318.933639,0.00038667,14]
[357383472,1744029047928,-175.050007,0.00038667,14]
[357383473,1744029047937,-175.050007,0.00038667,14]
[357383474,1744029047946,-175.050007,0.00038667,14]
[357383475,1744029047956,-175.050007,0.00038667,14]
[357383476,1744029047966,-175.050007,0.00038667,14]
[357383477,1744029047977,-175.050001,0.00038667,14]
[357383478,1744029047986,-314.273874,0.00038667,14]
[357383479,1744029047996,-314.273874,0.00038667,14]
[357383480,1744029048006,-314.273874,0.00038667,14]
[357383481,1744029048015,-314.273874,0.00038667,14]
[357383482,1744029048025,-314.273874,0.00038667,14]
[357383483,1744029048035,-314.273873,0.00038667,14]
[357383484,1744029048044,-511.471815,0.00038667,14]
[357383485,1744029048056,-511.471815,0.00038667,14]
[357383486,1744029048066,-728.405535,0.00038667,14]
[357383487,1744029048082,-728.405535,0.00038667,14]
[357383488,1744029048092,-728.405535,0.00038667,14]
[357383489,1744029048103,-728.405535,0.00038667,14]
[357383490,1744029048113,-500.0,0.0003867,14]
[357383491,1744029048124,-500.0,0.0003867,14]
[357383492,1744029048135,-514.54664532,0.00038673,5]
[357383493,1744029048145,-500.0,0.00038673,5]
[357383494,1744029048156,-500.0,0.00038673,5]
[357383495,1744029048167,-500.0,0.00038673,5]
[357383496,1744029048178,-511.471821,0.00038673,14]
[357383497,1744029048190,-728.405535,0.00038673,14]
[357383498,1744029048201,-728.40553,0.00038673,14]
[357383499,1744029048212,-706.355521,0.00038676,14]
[357383500,1744029048224,-706.355521,0.00038676,14]
[357383501,1744029048235,-706.355521,0.00038676,14]
[357383502,1744029048246,-706.355521,0.00038676,14]
[357383503,1744029048256,-706.355521,0.00038676,14]
[357383504,1744029048267,-706.355521,0.00038676,14]
[357383505,1744029048278,-706.355521,0.00038676,14]
[357383506,1744029048289,-706.355521,0.00038676,14]
[357383507,1744029048299,-706.355521,0.00038676,14]
[357383508,1744029048309,-706.355521,0.00038676,14]
[357383509,1744029048321,-398.669094,0.00038676,14]
[357383510,1744029048335,-398.669094,0.00038676,14]
[357383511,1744029048345,-398.669094,0.00038676,14]
[357383512,1744029048356,-398.669094,0.00038676,14]
[357383513,1744029048367,-398.669094,0.00038676,14]
[357383514,1744029048378,-398.669094,0.00038676,14]
[357383515,1744029048388,-398.669094,0.00038676,14]
[357383516,1744029048398,-398.669094,0.00038676,14]
[357383517,1744029048408,-318.933639,0.00038676,14]
[357383518,1744029048417,-318.933639,0.00038676,14]
[357383519,1744029048428,-318.933639,0.00038676,14]
[357383520,1744029048438,-318.933639,0.00038676,14]
[357383521,1744029048448,-318.933639,0.00038676,14]
[357383522,1744029048459,-318.933639,0.00038676,14]
[357383523,1744029048469,-318.933639,0.00038676,14]
[357383524,1744029048480,-318.933639,0.00038676,14]
[357383525,1744029048491,-318.933639,0.00038676,14]
[357383526,1744029048501,-318.933639,0.00038676,14]
[357383527,1744029048511,-151.0,0.00038677,14]
[357383528,1744029048522,-151.0,0.00038677,14]
[357383529,1744029048533,-151.0,0.00038677,14]
[357383530,1744029048543,-151.0,0.00038677,14]
[357383531,1744029048700,-151.0,0.00038677,14]
[357383532,1744029048711,-151.0,0.00038677,14]
[357383533,1744029048722,-151.0,0.00038677,14]
[357383534,1744029048732,-151.0,0.00038677,14]
[357383535,1744029048747,-151.0,0.00038677,14]
[357383536,1744029048758,-341.058048,0.00038677,14]
[357383537,1744029048768,-341.058048,0.00038677,14]
[357383538,1744029048779,-311.209562,0.00038677,14]
[357383539,1744029048790,-311.209562,0.00038677,14]
[357383540,1744029048801,-223.466645,0.00038677,14]
[357383541,1744029048811,-151.0,0.00038677,14]
[357383542,1744029048826,-230.812653,0.00038677,14]
[357383543,1744029048836,-151.0,0.00038677,14]
[357383544,1744029048847,-151.0,0.00038677,14]
[357383545,1744029048856,-151.0,0.00038677,14]
[357383546,1744029048867,-706.355521,0.00038677,14]
[357383547,1744029048877,-706.355526,0.00038677,14]
[357383548,1744029048888,-151.0,0.00038677,14]
[357383549,1744029048898,-398.669094,0.00038677,14]
[357383550,1744029048908,-398.669094,0.00038677,14]
[357383551,1744029048919,-318.933639,0.00038677,14]
[357383552,1744029048929,-318.933639,0.00038677,14]
[357383553,1744029048940,-564.00270169,0.00038683,3]
[357383554,1744029048950,-1005.74536851,0.00038693,7]
[357383555,1744029048959,-1005.74536851,0.00038693,7]
[357383556,1744029048970,-3504.63993875,0.00038693,7]
[357383557,1744029048980,-3504.63993875,0.00038693,7]
[357383558,1744029048990,-7037.99941891,0.00038696,2]
[357383559,1744029049000,-151.0,0.000387,17]
[357383560,1744029049015,-419.36665037,0.000387,7]
[357383561,1744029049024,-210.19958848,0.00038749,14]
[357383562,1744029049035,-162.89753949,0.00038749,14]
[357383563,1744029049044,-155.0,0.00038749,14]
[357383564,1744029049054,-163.82908989,0.00038749,14]
[357383565,1744029049065,-318.0,0.00038749,14]
[357383566,1744029049081,-318.0,0.00038749,14]
[357383567,1744029049092,-318.0,0.00038749,14]
[357383568,1744029049102,-318.0,0.00038749,14]
[357383569,1744029049113,-318.0,0.00038749,14]
[357383570,1744029049123,-318.0,0.00038749,14]
[357383571,1744029049139,-318.0,0.00038749,14]
[357383572,1744029049149,-357.0,0.00038749,14]
[357383573,1744029049161,-318.0,0.00038749,14]
[357383574,1744029049172,-357.0,0.00038749,14]
[357383575,1744029049184,-318.0,0.00038749,14]
[357383576,1744029049196,-357.0,0.00038749,14]
[357383577,1744029049208,-318.0,0.00038749,14]
[357383578,1744029049219,-357.0,0.00038749,14]
[357383579,1744029049230,-357.0,0.00038749,14]
[357383580,1744029049240,-357.0,0.00038749,14]
[357383581,1744029049252,-357.0,0.00038749,14]
[357383582,1744029049263,-357.0,0.00038749,14]
[357383583,1744029049274,-357.0,0.00038749,14]
[357383584,1744029049284,-151.0,0.00038773,14]
[357383585,1744029049295,-151.0,0.00038777,14]
[357383586,1744029049306,-157.252656,0.00038777,14]
[357383587,1744029049319,-151.0,0.00038777,14]
[357383588,1744029049335,-398.669094,0.00038777,14]
[357383589,1744029049346,-398.669102,0.00038777,14]
[357383590,1744029049356,-151.0,0.00038787,14]
[357383591,1744029049367,-151.0,0.00038787,14]
[357383592,1744029049380,-280.951246,0.00038787,14]
[357383593,1744029049390,-151.0,0.00038787,14]
[357383594,1744029049400,-151.0,0.00038787,14]
[357383595,1744029049411,-151.0,0.00038787,14]
[357383596,1744029049421,-151.0,0.00038787,14]
[357383597,1744029049431,-151.0,0.00038788,14]
[357383598,1744029049441,-217.10239,0.00038788,14]
[357383599,1744029049452,-217.10239,0.00038788,14]
[357383600,1744029049463,-1000.0,0.000388,28]
[357383601,1744029049474,-500.0,0.00038873,5]
[357383602,1744029049485,-500.0,0.00038873,5]
[357383603,1744029049496,-151.0,0.00038878,14]
[357383604,1744029049506,-152.422976,0.00038878,14]
[357383605,1744029049516,-151.0,0.00038878,14]
[357383606,1744029049527,-151.0,0.00038878,14]
[357383607,1744029049537,-151.0,0.00038878,14]
[357383608,1744029049546,-151.0,0.00038878,14]
[357383609,1744029049557,-151.0,0.00038878,14]
[357383610,1744029049567,-288.084448,0.00038878,14]
[357383611,1744029049583,-288.084448,0.00038878,14]
[357383612,1744029049593,-151.0,0.00038878,14]
[357383613,1744029049603,-341.058048,0.00038878,14]
[357383614,1744029049612,-341.058048,0.00038878,14]
[357383615,1744029049622,-311.209562,0.00038878,14]
[357383616,1744029049632,-311.209562,0.00038878,14]
[357383617,1744029049642,-223.466645,0.00038878,14]
[357383618,1744029049652,-151.0,0.00038878,14]
[357383619,1744029049662,-289.747733,0.00038878,14]
[357383620,1744029049672,-160.0,0.00038887,30]
[357383621,1744029049684,-99702.42338277,0.00038888,25]
[357383622,1744029049695,-500.0,0.00038888,120]
[357383623,1744029049706,-151.0,0.00038888,14]
[357383624,1744029049718,-245.882523,0.00038888,14]
[357383625,1744029049735,-151.0,0.00038888,14]
[357383626,1744029049748,-151.0,0.00038888,14]
[357383627,1744029049757,-151.0,0.00038888,14]
[357383628,1744029049767,-151.0,0.00038888,14]
[357383629,1744029049779,-151.0,0.00038888,14]
[357383630,1744029049789,-217.10239,0.00038888,14]
[357383631,1744029049798,-235.62355649,0.00038888,14]
[357383632,1744029049808,-217.10239,0.00038888,14]
[357383633,1744029049818,-151.0,0.00038888,14]
[357383634,1744029049832,-151.0,0.00038888,14]
[357383635,1744029049842,-151.0,0.00038888,14]
[357383636,1744029049851,-151.0,0.00038888,14]
[357383637,1744029049861,-151.0,0.00038888,14]
[357383638,1744029049871,-288.084448,0.00038888,14]
[357383639,1744029049880,-288.084448,0.00038888,14]
[357383640,1744029049890,-151.0,0.00038888,14]
[357383641,1744029049901,-151.0,0.00038888,14]
[357383642,1744029049913,-341.058048,0.00038888,14]
[357383643,1744029049924,-341.058048,0.00038888,14]
[357383644,1744029049934,-311.209562,0.00038888,14]
[357383645,1744029049944,-311.209562,0.00038888,14]
[357383646,1744029049954,-223.466645,0.00038888,14]
[357383647,1744029049963,-151.0,0.00038888,14]
[357383648,1744029049973,-166.0,0.00038888,14]
[357383649,1744029049983,-166.0,0.00038888,14]
[357383650,1744029049993,-357.0,0.00038888,14]
[357383651,1744029050003,-239.56755106,0.00038888,14]
[357383652,1744029050013,-357.0,0.00038888,14]
[357383653,1744029050022,-318.0,0.00038888,14]
[357383654,1744029050032,-318.0,0.00038888,14]
[357383655,1744029050042,-357.0,0.00038888,14]
[357383656,1744029050052,-318.0,0.00038888,14]
[357383657,1744029050062,-357.0,0.00038888,14]
[357383658,1744029050075,-357.0,0.00038888,14]
[357383659,1744029050086,-357.0,0.00038888,14]
[357383660,1744029050096,-394.42800113,0.00038888,14]
[357383661,1744029050106,-357.0,0.00038888,14]
[357383662,1744029050116,-188.36932548,0.00038888,14]
[357383663,1744029050126,-318.0,0.00038888,14]
[357383664,1744029050136,-318.0,0.00038888,14]
[357383665,1744029050145,-318.0,0.00038888,14]
[357383666,1744029050158,-318.0,0.00038888,14]
[357383667,1744029050169,-318.0,0.00038888,14]
[357383668,1744029050180,-385.12294362,0.00038921,5]
[357383669,1744029050191,-38122.28,0.00039,120]
[357383670,1744029050201,-151.0,0.00039,14]
[357383671,1744029050213,-151.0,0.00039,14]
[357383672,1744029050223,-151.0,0.00039,14]
[357383673,1744029050233,-217.10239,0.00039,14]
[357383674,1744029050243,-217.10239,0.00039,14]
[357383675,1744029050253,-151.0,0.00039,14]
[357383676,1744029050262,-151.0,0.00039,14]
[357383677,1744029050271,-151.0,0.00039,14]
[357383678,1744029050282,-151.0,0.00039,14]
[357383679,1744029050291,-242.700588,0.00039,14]
[357383680,1744029050301,-288.084448,0.00039,14]
[357383681,1744029050311,-288.084448,0.00039,14]
[357383682,1744029050326,-151.0,0.00039,14]
[357383683,1744029050337,-151.0,0.00039,14]
[357383684,1744029050346,-341.058048,0.00039,14]
[357383685,1744029050356,-341.058048,0.00039,14]
[357383686,1744029050366,-311.209562,0.00039,14]
[357383687,1744029050375,-311.209562,0.00039,14]
[357383688,1744029050385,-223.466645,0.00039,14]
[357383689,1744029050395,-151.0,0.00039,14]
[357383690,1744029050405,-160.0,0.00039102,14]
[357383691,1744029050415,-500.0,0.00039102,14]
[357383692,1744029050425,-500.0,0.00039102,14]
[357383693,1744029050435,-154.02497516,0.00039102,14]
[357383694,1744029050445,-299.91,0.00039102,14]
[357383695,1744029050455,-500.0,0.00039102,14]
[357383696,1744029050466,-151.0,0.00039204,14]
[357383697,1744029050475,-151.0,0.00039204,14]
[357383698,1744029050485,-151.0,0.00039204,14]
[357383699,1744029050494,-631.0,0.000393,2]
[357383700,1744029050503,-2000.0,0.0003933,4]
[357383701,1744029050513,-201.19857399,0.00039332,14]
[357383702,1744029050522,-357.0,0.00039332,14]
[357383703,1744029050531,-500.0,0.00039441,120]
[357383704,1744029050541,-5000.0,0.00039473,3]
[357383705,1744029050551,-239.84119403,0.00039487,2]
[357383706,1744029050561,-151.0,0.0003949,14]
[357383707,1744029050571,-151.0,0.0003949,14]
[357383708,1744029050583,-151.0,0.0003949,14]
[357383709,1744029050593,-151.0,0.0003949,14]
[357383710,1744029050602,-288.084448,0.0003949,14]
[357383711,1744029050612,-288.084448,0.0003949,14]
[357383712,1744029050621,-151.0,0.0003949,14]
[357383713,1744029050632,-341.058048,0.0003949,14]
[357383714,1744029050641,-341.058048,0.0003949,14]
[357383715,1744029050650,-311.209562,0.0003949,14]
[357383716,1744029050659,-311.209562,0.0003949,14]
[357383717,1744029050669,-223.466645,0.0003949,14]
[357383718,1744029050678,-151.0,0.0003949,14]
[357383719,1744029050687,-10000.0,0.000395,80]
[357383720,1744029050697,-151.0,0.000395,14]
[357383721,1744029050707,-163.382346,0.000395,14]
[357383722,1744029050716,-217.10239,0.000395,14]
[357383723,1744029050730,-217.10239,0.000395,14]
[357383724,1744029050739,-151.0,0.000395,14]
[357383725,1744029050750,-2764.73713298,0.00039555,15]
[357383726,1744029050759,-151.0,0.00039563,14]
[357383727,1744029050770,-295.044979,0.00039573,14]
[357383728,1744029050782,-151.0,0.00039573,14]
[357383729,1744029050792,-151.0,0.00039573,14]
[357383730,1744029050801,-288.084448,0.00039573,14]
[357383731,1744029050811,-288.084448,0.00039573,14]
[357383732,1744029050820,-151.0,0.00039573,14]
[357383733,1744029050834,-151.0,0.00039573,14]
[357383734,1744029050843,-341.058048,0.00039573,14]
[357383735,1744029050853,-341.058048,0.00039573,14]
[357383736,1744029050863,-311.209562,0.00039573,14]
[357383737,1744029050872,-311.209562,0.00039573,14]
[357383738,1744029050881,-223.466645,0.00039573,14]
[357383739,1744029050891,-151.0,0.00039573,14]
[357383740,1744029050900,-151.0,0.000396,14]
[357383741,1744029050910,-151.0,0.000396,14]
[357383742,1744029050920,-156.27527196,0.000399,120]
[357383743,1744029050929,-217.10239,0.000399,14]
[357383744,1744029050939,-217.10239,0.000399,14]
[357383745,1744029050948,-160.0,0.00039999,30]
[357383746,1744029050957,-11016.34876844,0.0004,60]
[357383747,1744029051444,-6283.98145619,0.0004,60]
[357383748,1744029051588,-783.73948285,0.00032778,7]
[357383749,1744029051599,-783.73948285,0.0003588,3]
[357383750,1744029051609,-783.73948285,0.0003752,3]
[357383751,1744029051619,-179.81,0.00038386,2]
[357383752,1744029051629,-12498.91162036,0.0004,60]
[357383753,1744029051641,-449.39999742,0.0004,60]
[357383754,1744029051692,-1617.89999999,0.0004,60]
[357383755,1744029051705,-1712.59232422,0.0004,60]
[357383756,1744029051766,-151.0,0.00031508,7]
[357383757,1744029051777,-151.0,0.0003151,7]
[357383758,1744029051788,-957.3607,0.00031518,2]
[357383759,1744029051798,-957.3607,0.00031518,2]
[357383760,1744029051807,-151.0,0.0003152,7]
[357383761,1744029051817,-151.0,0.00032571,7]
[357383762,1744029051833,-267.608379,0.00032671,7]
[357383763,1744029051843,-1347.95119209,0.0004,60]
[357383809,1744030231987,-500.0,0.00027397,5]
[357383810,1744030231997,-393.451781,0.00029162,2]
[357383811,1744030232007,-204.3952018,0.00029375,2]
[357383812,1744030232017,-502.37,0.00030059,3]
[357383813,1744030232026,-400.0,0.00030059,2]
[357383814,1744030232036,-5247.8168451,0.0003006,2]
[357383815,1744030232046,-183.368107,0.00030653,120]
[357383816,1744030232056,-11673.6774128,0.00030699,2]
[357383817,1744030232072,-754.58865624,0.00031043,2]
[357383818,1744030232082,-151.0,0.00031398,7]
[357383819,1744030232092,-151.0,0.00031398,7]
[357383820,1744030232102,-10110.51865818,0.00031398,2]
[357383821,1744030232111,-63.72807361,0.00031399,7]
[357383822,1744030232123,-87.27192639,0.00031399,7]
[357383823,1744030232132,-151.0,0.00031399,7]
[357383824,1744030232143,-151.0,0.00031508,7]
[357383825,1744030232153,-151.0,0.00031508,7]
[357383826,1744030232162,-178.773316,0.0003151,7]
[357383828,1744030232172,-178.773316,0.0003151,7]
[357383830,1744030232182,-176.094161,0.0003151,7]
[357383832,1744030232191,-176.094161,0.0003151,7]
[357383834,1744030232201,-151.0,0.0003151,7]
[357383836,1744030232213,-178.773316,0.00031518,7]
[357383838,1744030232223,-178.773316,0.00031518,7]
[357383840,1744030232233,-176.094161,0.00031518,7]
[357383842,1744030232242,-176.094161,0.00031518,7]
[357383844,1744030232252,-151.0,0.00031519,7]
[357383846,1744030232261,-151.0,0.0003152,7]
[357383848,1744030232270,-178.773316,0.00031573,7]
[357383850,1744030232280,-178.773316,0.00031573,7]
[357383852,1744030232290,-151.0,0.000319,7]
[357383853,1744030232299,-290.007282,0.00032314,7]
[357383854,1744030232309,-560.0,0.00032394,2]
[357383855,1744030232319,-176.094161,0.0003252,7]
[357383856,1744030232329,-176.094161,0.0003252,7]
[357383857,1744030232339,-676.76168793,0.00032583,2]
[357383858,1744030232348,-176.094161,0.00032662,7]
[357383860,1744030232357,-176.094161,0.00032662,7]
[357383862,1744030232367,-178.773316,0.00032671,7]
[357383863,1744030232377,-178.773316,0.00032671,7]
[357383864,1744030232386,-176.094161,0.00032671,7]
[357383865,1744030232396,-176.094161,0.00032671,7]
[357383867,1744030232405,-219.933455,0.00032671,7]
[357383868,1744030232415,-219.933455,0.00032671,7]
[357383869,1744030232425,-160.0,0.00032671,7]
[357383871,1744030232434,-265.508741,0.00032671,7]
[357383872,1744030232444,-178.773316,0.00032673,7]
[357383873,1744030232453,-178.773316,0.00032673,7]
[357383875,1744030232467,-178.773316,0.00032673,7]
[357383876,1744030232477,-178.773316,0.00032673,7]
[357383877,1744030232486,-176.094161,0.00032673,7]
[357383879,1744030232496,-176.094161,0.00032673,7]
[357383880,1744030232505,-219.933455,0.00032673,7]
[357383881,1744030232515,-219.933455,0.00032673,7]
[357383883,1744030232525,-783.73948285,0.00032673,7]
[357383885,1744030232534,-178.773316,0.00032768,7]
[357383886,1744030232544,-178.773316,0.00032768,7]
[357383887,1744030232554,-176.094161,0.00032768,7]
[357383888,1744030232564,-176.094161,0.00032768,7]
[357383889,1744030232575,-178.773316,0.00032778,7]
[357383890,1744030232584,-178.773316,0.00032778,7]
[357383891,1744030232595,-178.773316,0.00032778,7]
[357383892,1744030232604,-178.773316,0.00032778,7]
[357383893,1744030232613,-178.773316,0.00032778,7]
[357383894,1744030232623,-178.773308,0.00032778,7]
[357383895,1744030232633,-176.094161,0.00032778,7]
[357383896,1744030232642,-176.094161,0.00032778,7]
[357383897,1744030232651,-176.094161,0.00032778,7]
[357383898,1744030232661,-176.094161,0.00032778,7]
[357383899,1744030232670,-176.094161,0.00032778,7]
[357383900,1744030232679,-176.094163,0.00032778,7]
[357383901,1744030232689,-219.933455,0.00032778,7]
[357383902,1744030232698,-219.933455,0.00032778,7]
[357383903,1744030232710,-796.83849952,0.00032877,5]
[357383904,1744030232720,-219.933455,0.00033215,14]
[357383905,1744030232730,-219.933455,0.00033215,14]
[357383906,1744030232740,-219.933455,0.00033545,14]
[357383907,1744030232749,-219.933455,0.00033545,14]
[357383908,1744030232759,-457.4865067,0.00034268,2]
[357383909,1744030232768,-160.0,0.00034558,2]
[357383910,1744030232778,-12527.9349248,0.00034558,2]
[357383911,1744030232788,-783.73948285,0.00034558,2]
[357383912,1744030232798,-160.0,0.00034558,2]
[357383913,1744030232807,-419.36665037,0.00034558,2]
[357383914,1744030232817,-160.0,0.00034558,2]
[357383915,1744030232826,-219.933455,0.00034863,14]
[357383916,1744030232836,-219.933455,0.00034863,14]
[357383917,1744030232845,-160.0,0.00034912,2]
[357383918,1744030232855,-565.767548,0.0003589,2]
[357383919,1744030232864,-3677.95215822,0.000362,98]
[357383920,1744030232873,-3677.95215818,0.000362,98]
[357383921,1744030232883,-219.933455,0.00036441,14]
[357383922,1744030232892,-219.933455,0.00036441,14]
[357383923,1744030232901,-219.933455,0.00037179,14]
[357383924,1744030232911,-219.933455,0.00037179,14]
[357383925,1744030232920,-500.0,0.00037441,120]
[357383926,1744030232930,-219.933455,0.00037526,14]
[357383927,1744030232939,-219.933455,0.00037526,14]
[357383928,1744030232948,-152.033,0.00037539,2]
[357383929,1744030232957,-543.0,0.00037539,2]
[357383930,1744030232967,-1003.0,0.00037539,2]
[357383931,1744030232977,-2255.0,0.00037539,2]
[357383932,1744030232987,-219.933455,0.0003755,14]
[357383933,1744030232997,-219.93346,0.0003755,14]
[357383934,1744030233006,-487.98,0.00037587,15]
[357383935,1744030233015,-500.0,0.00037587,2]
[357383936,1744030233025,-200.0,0.00037587,2]
[357383937,1744030233035,-252.45,0.000378,31]
[357383938,1744030233046,-252.45,0.000378,31]
[357383939,1744030233060,-252.45,0.000378,31]
[357383940,1744030233069,-252.45,0.000378,31]
[357383941,1744030233079,-252.45,0.000378,31]
[357383942,1744030233089,-252.45,0.000378,31]
[357383943,1744030233100,-252.45,0.000378,31]
[357383944,1744030233111,-252.45,0.000378,31]
[357383945,1744030233121,-252.45,0.000378,31]
[357383946,1744030233131,-252.45,0.000378,31]
[357383947,1744030233145,-252.45,0.000378,31]
[357383948,1744030233155,-252.45,0.000378,31]
[357383949,1744030233165,-445.519,0.00038077,50]
[357383950,1744030233175,-1101.3991403,0.00038302,4]
[357383951,1744030233185,-257.0,0.000384,120]
[357383952,1744030233195,-3677.95215818,0.00038441,111]
[357383953,1744030233205,-200.0,0.0003886,53]
[357383954,1744030233219,-500.0,0.00038888,14]
[357383955,1744030233228,-500.0,0.00038888,14]
[357383956,1744030233238,-783.73948285,0.0003899,3]
[357383957,1744030233247,-12881.32117868,0.00039,14]
[357383958,1744030233257,-201.19857399,0.00039165,14]
[357383959,1744030233267,-357.0,0.00039165,14]
[357383960,1744030233277,-318.0,0.00039165,14]
[357383961,1744030233287,-357.0,0.00039165,14]
[357383962,1744030233297,-318.0,0.00039165,14]
[357383963,1744030233307,-357.0,0.00039165,14]
[357383964,1744030233317,-318.0,0.00039165,14]
[357383965,1744030233512,-357.0,0.00039165,14]
[357383966,1744030233546,-318.0,0.00039165,14]
[357383967,1744030233556,-357.0,0.00039165,14]
[357383968,1744030233566,-318.0,0.00039165,14]
[357383969,1744030233576,-357.0,0.00039165,14]
[357383970,1744030233586,-357.0,0.00039165,14]
[357383971,1744030233597,-225.79732661,0.00039165,14]
[357383972,1744030233607,-166.0,0.00039165,14]
[357383973,1744030233618,-166.0,0.00039165,14]
[357383974,1744030233628,-318.0,0.00039165,14]
[357383975,1744030233638,-357.0,0.00039165,14]
[357383976,1744030233648,-318.0,0.00039165,14]
[357383977,1744030233657,-357.0,0.00039165,14]
[357383978,1744030233667,-318.0,0.00039165,14]
[357383979,1744030233677,-357.0,0.00039165,14]
[357383980,1744030233687,-239.56755106,0.00039165,14]
[357383981,1744030233696,-357.0,0.00039165,14]
[357383982,1744030233707,-20305.9515138,0.00039211,3]
[357383983,1744030233724,-1065.69099489,0.00039221,7]
[357383984,1744030233734,-4929.7487568,0.00039221,7]
[357383985,1744030233743,-4929.7487568,0.00039221,7]
[357383986,1744030233754,-631.0,0.000394,2]
[357383987,1744030233764,-210.19958848,0.00039444,14]
[357383988,1744030233774,-162.89753949,0.00039444,14]
[357383989,1744030233784,-155.0,0.00039444,14]
[357383990,1744030233794,-163.82908989,0.00039444,14]